Cogmind - Beta 17.1 @@@ ROGUE MODE // 2026.08.31 @ 15:54:32 Player: Finn Result: Destroyed by H-55 Commando with Assault Rifle Performance ------------- Evolutions (2) 1000 Regions Visited (3) 600 Robots Destroyed (60) 300 Value Destroyed (1813) 1813 Prototype IDs (2) 40 Alien Tech Used (0) 0 Bonus (0) 0 TOTAL SCORE: 3753 Bonus ------- None Cogmind --------- Core Integrity 0/550 Matter 300/300 Energy 66/100 System Corruption 0% Temperature Cool (94) Movement Core (100) Ox1 Location -8/Materials Parts ------- > --- POWER (1) -------- (None) > --- PROPULSION (4) --- (None) > --- UTILITY (3) ------ Targeting Computer Utility Shielding > --- WEAPON (3) ------- Beam Rifle > --- INVENTORY (5) ---- Light Deuterium Engine Aluminum Leg Structural Scanner Peak State ------------ > --- POWER ------------ Deuterium Engine > --- PROPULSION ------- Flight Unit Improved Flight Unit > --- UTILITY ---------- Advanced Weight Redist. System Targeting Computer Utility Shielding > --- WEAPON ----------- EM Pulse Cannon Improved Datajack Hammer > --- INVENTORY -------- Light Treads Light Treads Aluminum Leg Structural Scanner [Rating: 19] Favorites ----------- Power Ion Engine Engine Ion Engine Power Core Light Nuclear Core Propulsion Aluminum Leg Treads Light Treads Leg Aluminum Leg Wheel Wheel Flight Unit Flight Unit Utility Utility Shielding Device Structural Scanner Storage Small Storage Unit Processor Salvage Targeting Computer Protection Utility Shielding Weapon Heavy Assault Rifle Energy Gun Beam Rifle Energy Cannon EM Pulse Cannon Ballistic Gun Heavy Assault Rifle Impact Weapon Hammer Special Melee Weapon Improved Datajack Build | -11 -10 -9 -8 ------- Run | Yrd Mat Mat Mat Slots Evolved 4 | . . 2 2 Power . | . . . . Propulsion 2 | . . 1 1 Utility 1 | . . 1 . Weapon 1 | . . . 1 Parts Attached 42 | 8 11 14 9 Power 7 | 1 2 2 2 Engine 6 | 1 2 2 1 Core 1 | . . . 1 Reactor . | . . . . Propulsion 14 | 4 4 5 1 Treads 3 | 2 . . 1 Leg 4 | . 4 . . Wheel 2 | 2 . . . Hover . | . . . . Flight 5 | . . 5 . Utility 8 | 1 3 2 2 Device 3 | . 2 . 1 Storage 1 | 1 . . . Processor 3 | . 1 1 1 Hackware . | . . . . Protection 1 | . . 1 . Artifact . | . . . . Weapon 13 | 2 2 5 4 Energy Gun 8 | 2 2 1 3 Energy Cannon 1 | . . . 1 Ballistic Gun 2 | . . 2 . Ballistic Cannon . | . . . . Launcher . | . . . . Special Weapon . | . . . . Impact Weapon 1 | . . 1 . Slashing Weapon . | . . . . Piercing Weapon . | . . . . Special Melee Weapon 1 | . . 1 . Unidentified Prototypes 2 | . . 1 1 Parts Lost 27 | . 6 7 14 Power 5 | . 1 2 2 Propulsion 11 | . 2 3 6 Utility 2 | . 1 . 1 Weapon 9 | . 2 2 5 Highest Loss Streak 6 | . 5 3 6 To Critical Strikes . | . . . . Average Backups 5 | 2 6 5 3 Power . | . . . . Propulsion 3 | 1 4 4 2 Utility . | . . . . Weapon . | . . 1 . Tool/Special . | . . . . Unused Backups 3 | . . 1 2 Power 1 | . . . 1 Propulsion 2 | . . 1 1 Utility . | . . . . Weapon . | . . . . Tool/Special . | . . . . Average Slot Usage (%) 84 | . 93 85 71 Engine 10 | . 13 10 5 Leg 8 | . 15 9 . Wheel 2 | . 10 . . Flight 11 | . . 16 14 Device 9 | . 10 11 7 Storage 5 | . 14 3 . Processor 5 | . 1 5 9 Protection 6 | . . 7 9 Energy Gun 13 | . 27 10 2 Energy Cannon 1 | . . . 6 Ballistic Gun 5 | . . 10 . Impact Weapon 1 | . . . 6 Special Melee Weapon 1 | . . . 5 Peak Build Rating 19 | 6 7 14 19 Average Rating 11 | 4 6 11 15 On Entrance 6 | . 6 6 13 Avg Prop Armor Cover (%) 9 | . . 9 . Naked Turns . | . . . . Heaviest Build 19 | 13 15 18 19 Greatest Support 49 | 40 20 30 49 Greatest Overweight (x) 3 | . 3 2 1 Average Overweight (x) . | . . . . Largest Inventory Capacity 8 | 8 8 8 5 Average Capacity 6 | 6 8 5 5 Most Carried 8 | 6 8 8 5 Average Carried 5 | 3 6 5 3 Final Capacity 8 | 8 8 5 5 Final Carried 7 | 6 7 3 3 Class Distribution -------------------- 94% | Mutant 4% | Scavenger-Mutant Dominant Class ---------------- Mutant | -10/Materials Mutant | -9/Materials Mutant | -8/Materials Resources | -11 -10 -9 -8 ----------- Run | Yrd Mat Mat Mat Matter Collected 917 | 248 135 414 120 Remotely . | . . . . Salvage Created 2271 | . 643 962 666 Parts 118 | . 29 61 28 Haulers Intercepted 1 | . 1 . . Recyclers Shooed 1 | . . . 1 Parts Field Recycled . | . . . . Retrieved Matter . | . . . . Parts Self-Destructed . | . . . . Prevented . | . . . . Parts Restored . | . . . . Kills | -11 -10 -9 -8 ------- Run | Yrd Mat Mat Mat Combat Hostiles Destroyed 47 | . 12 22 13 Melee 4 | . . . 4 Guns 33 | . 10 20 3 Cannons 3 | . . . 3 AOE 2 | . 2 . . Classes Destroyed 8 | . 3 4 1 Worker 3 | . . 1 2 Hauler 1 | . 1 . . Operator 1 | . . . 1 Watcher 8 | . 1 5 2 Swarmer 10 | . . 7 3 Grunt 27 | . 12 7 8 Brawler 1 | . . 1 . Sentry 9 | . . 7 2 Best Kill Streak 6 | . 4 6 5 Combat Bots Only 5 | . 4 5 3 Max Kills in Single Turn 2 | . 1 2 1 Gunslinging 1 | . . 1 . Exploded 1 | . 1 . . Melee 1 | . . . 1 Uniques/NPCs Destroyed . | . . . . Combat | -11 -10 -9 -8 -------- Run | Yrd Mat Mat Mat Hostile Shots Fired 338 | . 81 107 150 Missed 93 | . 21 32 40 Hits 245 | . 60 75 110 Projectile 245 | . 60 75 110 Critical Strikes 6 | . 1 3 2 Damage Taken 3297 | . 770 902 1625 Core 1047 | . 159 334 554 Absorbed by Shields . | . . . . Redirected to Shielding 10 | . . . 10 Regen/Repaired (Parts) 15 | . . 15 . Core Remaining (%) 50 | 100 36 16 . Volleys Fired 171 | . 68 66 37 Largest 3 | . 2 2 3 Hottest 171 | . 80 79 171 Shots Fired 298 | . 120 124 54 Gun 283 | . 120 124 39 Cannon 15 | . . . 15 Launcher . | . . . . Special . | . . . . Kinetic 58 | . . 58 . Thermal 138 | . 53 65 20 Explosive . | . . . . Electromagnetic 102 | . 67 1 34 Robot Hit Streak 10 | . 6 10 7 Robot Miss Streak 13 | . 3 6 13 Penetration Max . | . . . . Secondary Targets 3 | . . 3 . Max Gunslinging Chain 1 | . . 1 . Shots Hit Robots 198 | . 73 74 51 Core Hits 86 | . 30 33 23 Critical Kills 1 | . . . 1 Critical Parts Destroyed 5 | . . 3 2 Critical Strikes 9 | . . 6 3 Burn 3 | . . 3 . Smash 6 | . . 3 3 Melee Attacks 28 | . . 6 22 Impact 22 | . . 5 17 Slashing . | . . . . Piercing . | . . . . Sneak Attacks 1 | . . . 1 Combat Hostiles . | . . . . Follow-up Attacks . | . . . . Damage Inflicted 3526 | . 1115 1160 1251 Guns 2560 | . 922 1097 541 Cannons 319 | . . . 319 Explosions 166 | . 166 . . Melee 430 | . . 50 380 Ramming 51 | . 27 13 11 Kinetic 475 | . . 475 . Thermal 1289 | . 501 622 166 Explosive . | . . . . Electromagnetic 1281 | . 587 . 694 Impact 430 | . . 50 380 Slashing . | . . . . Piercing . | . . . . Highest Corruption 1 | . 1 1 . Average Corruption 1 | . 1 1 . Corruption Purged . | . . . . Corruption Blocked . | . . . . Effects 12 | . 7 5 . Message Errors 2 | . . 2 . Matter Fused 1 | . 1 . . Heat Flow Errors 3 | . 3 . . Parts Rejected 1 | . 1 . . Data Loss (minor) 1 | . 1 . . Data Loss (major) 2 | . 1 1 . Alerts 2 | . . 2 . Overload Shots . | . . . . Overflow Damage 152 | . 27 50 75 Projectiles . | . . . . Explosions 27 | . 27 . . Melee 125 | . . 50 75 Knockbacks 4 | . . . 4 Impact 4 | . . . 4 Kinetic . | . . . . Secondary . | . . . . Self-Inflicted Damage 41 | . 35 6 . Shots 2 | . 2 . . Rammed 24 | . 4 1 19 Targets Rammed 27 | . 5 1 21 Kicked 1 | . 1 . . Crushed 2 | . . . 2 Highest Temperature 314 | . 299 135 314 Average Temperature 75 | . 97 37 96 Received Heat Transfer 1524 | . 435 297 792 Effects 1 | . . . 1 Energy Bleed 1 | . . . 1 Siege Activations . | . . . . Martial Activations . | . . . . Shielding Activations . | . . . . Robots Disrupted . | . . . . Combat Hostiles . | . . . . Robots Corrupted 6 | . . 2 4 Combat Hostiles 5 | . . 2 3 Parts Fried 12 | . 3 2 7 Impact Corruptions 9 | . . 4 5 Robots Melted . | . . . . Combat Hostiles . | . . . . Parts Melted 4 | . . 4 . Heat Transferred 3170 | . 950 1813 407 Parts Sabotaged . | . . . . Parts Stolen . | . . . . Parts Stripped . | . . . . Power Chain Reactions 3 | . 3 . . Alert | -11 -10 -9 -8 ------- Run | Yrd Mat Mat Mat Maximum Alert Level 1 | . . 1 . Low Security (%) 98 | 100 100 96 100 Level 1 1 | . . 3 . Level 2 . | . . . . Level 3 . | . . . . Level 4 . | . . . . Level 5 . | . . . . High Security . | . . . . Max Security . | . . . . Peak Influence 238 | . 92 238 153 Initial 98 | . . 10 98 Average 57 | . 19 76 56 Influence Increases 1466 | . 334 678 454 Destroy 0b10 Robot/C 940 | . 240 440 260 Destroy 0b10 Robot/NC 65 | . 10 30 25 Destroy Leader 238 | . 44 130 64 Successful Hack 30 | . 14 16 . Disable Machine 30 | . 15 . 15 Destroy Structure 13 | . 11 2 . Partial Spotted 15 | . . 15 . Lose Combat Pursuer 135 | . . 45 90 Influence Decreases 1396 | . 308 470 618 Entered New Map 152 | . . 16 136 Time Decay 984 | . 258 384 342 Lost Part 260 | . 50 70 140 Squads Dispatched 6 | . 2 2 2 Investigation 2 | . 1 . 1 Extermination . | . . . . Reinforcement 4 | . 1 2 1 Assault . | . . . . Garrison . | . . . . Intercept . | . . . . Searches Triggered . | . . . . Construction Impeded . | . . . . Haulers Reinforced . | . . . . Active Scanning Responses . | . . . . Cargo Convoy Interrupts . | . . . . Stealth | -11 -10 -9 -8 --------- Run | Yrd Mat Mat Mat Distress Signals 4 | . 1 2 1 Communications Jammed . | . . . . Distress Signals . | . . . . Times Spotted 87 | . 24 36 27 Peak Tracking Total 5 | . 4 5 5 Tactical Retreats 7 | . 2 2 3 ECM-based Alert Blocks 4 | . 4 . . Traps | -11 -10 -9 -8 ------- Run | Yrd Mat Mat Mat Traps Triggered 4 | . 4 . . Indirectly . | . . . . Trap Hack Attempts . | . . . . Triggered . | . . . . Disarmed . | . . . . Reprogrammed . | . . . . Reused . | . . . . Traps Extracted . | . . . . Installed . | . . . . Triggered . | . . . . Machines | -11 -10 -9 -8 ---------- Run | Yrd Mat Mat Mat Machines Disabled 2 | . 1 . 1 Max in Single Turn 1 | . 1 . 1 Machines Repaired . | . . . . Machines Dismantled . | . . . . Machines Sabotaged . | . . . . Overloaded Fab Kills . | . . . . Hacking | -11 -10 -9 -8 --------- Run | Yrd Mat Mat Mat Machines Accessed 8 | . 2 6 . Terminals 4 | . 1 3 . Fabricators . | . . . . Repair Stations 1 | . . 1 . Recycling Units 1 | . 1 . . Scanalyzers 2 | . . 2 . Garrison Access . | . . . . Total Hacks 14 | . 3 11 . Successful 6 | . 2 4 . Failed 8 | . 1 7 . Catastrophic 1 | . . 1 . Database Lockouts . | . . . . Manual . | . . . . Terminals 7 | . 2 5 . Fabricators . | . . . . Repair Stations 3 | . . 3 . Recycling Units 1 | . 1 . . Scanalyzers 3 | . . 3 . Garrison Access . | . . . . Terminal Hacks 2 | . 1 1 . Locate Traps 1 | . . 1 . Zone Layout 1 | . 1 . . Fabricator Hacks . | . . . . Repair Station Hacks 2 | . . 2 . Scan Component 1 | . . 1 . Repair 1 | . . 1 . Recycling Unit Hacks 1 | . 1 . . Process 1 | . 1 . . Scanalyzer 1 | . . 1 . Retrieve Study 1 | . . 1 . Garrison Access Hacks . | . . . . Unauthorized Hacks . | . . . . Terminals . | . . . . Fabricators . | . . . . Repair Stations . | . . . . Recycling Units . | . . . . Scanalyzers . | . . . . Garrison Access . | . . . . Data Cores Recovered . | . . . . Used . | . . . . Hacking Detections 4 | . 1 3 . Full Trace Events . | . . . . Feedback Events . | . . . . Feedback Blocked . | . . . . Robot Schematics Acquired . | . . . . Robots Built . | . . . . Authchips . | . . . . Time . | . . . . Total Robot Build Rating . | . . . . Part Schematics Acquired . | . . . . Parts Built . | . . . . Authchips . | . . . . Time . | . . . . Total Part Build Rating . | . . . . Part Studies Acquired 1 | . . 1 . Parts Repaired 1 | . . 1 . Time 26 | . . 26 . Parts Recycled . | . . . . Recycled Matter . | . . . . Retrieved Matter . | . . . . Retrieved Components . | . . . . Parts Scanalyzed . | . . . . Part Schematics Acquired . | . . . . Parts Damaged . | . . . . Bothacking | -11 -10 -9 -8 ------------ Run | Yrd Mat Mat Mat Used RIF Installer . | . . . . Robots Hacked 2 | . . 1 1 Non-combat . | . . . . Combat 2 | . . 1 1 Robot Hacks Applied 2 | . . 1 1 parse_system 2 | . . 1 1 Relay Couplers Released . | . . . . Fabnet Peak Effective % . | . . . . Robots Rewired . | . . . . Allies Hacked . | . . . . Hacks Repelled . | . . . . Allies | -11 -10 -9 -8 -------- Run | Yrd Mat Mat Mat Total Allies . | . . . . Largest Group . | . . . . Highest-Rated Group . | . . . . Highest-Rated Ally . | . . . . Total Orders . | . . . . Ally Attacks . | . . . . Total Damage . | . . . . Kills . | . . . . Allies Corrupted . | . . . . Allies Melted . | . . . . Intel | -11 -10 -9 -8 ------- Run | Yrd Mat Mat Mat Active Infowar (turns) 3354 | . 803 2407 144 Structural 2552 | . 1 2407 144 ECM 802 | . 802 . . Robot Analysis Total . | . . . . Derelict Logs Recovered . | . . . . Drone Launches . | . . . . Drone Recoveries . | . . . . Exploration | -11 -10 -9 -8 ------------- Run | Yrd Mat Mat Mat Turns Passed 4582 | 68 1112 2407 995 Spaces Moved 1935 | 54 559 1050 272 Core 9 | 7 2 . . Treads 77 | 8 . . 69 Legs 414 | . 260 154 . Wheels 336 | 39 297 . . Hover . | . . . . Flight 1099 | . . 896 203 Fastest Speed 34 | 50 80 34 34 Average Speed 91 | 87 103 91 68 Slowest Speed 200 | 160 200 180 160 Overloaded Moves . | . . . . Propulsion Burnouts . | . . . . Robots Hopped 2 | . . 2 . Potential Cave-ins . | . . . . Cave-ins Triggered . | . . . . Exploration Rate (%) 38 | 4 61 74 16 Regions Visited 3 Branch Regions . Pre-discovered Areas . | . . . . Known Exits Taken . | . . . . Unknown Exits Taken 3 | 1 1 1 . Scrap Searched . | . . . . Spaces Dug . | . . . . Terrain Destroyed 9 | . 9 . . Melee . | . . . . Projectile . | . . . . AOE 9 | . 9 . . Terrain Rammed . | . . . . Walls Destroyed . | . . . . Machines Disabled . | . . . . Actions | -11 -10 -9 -8 --------- Run | Yrd Mat Mat Mat Total 4390 | 73 971 2360 986 Wait 2126 | . 315 1201 610 Move 1928 | 53 558 1045 272 Hop 2 | . . 2 . Pick Up 40 | 12 9 9 10 Fast Attach 9 | . 5 4 . Attach 32 | 6 8 7 11 Detach 1 | . . . 1 Swap 16 | 2 3 10 1 Drop 10 | . . 9 1 Fire 171 | . 68 66 37 Melee 28 | . . 6 22 Ram 5 | . 4 1 . Kick 1 | . 1 . . Crush 21 | . . . 21 Escape Stasis . | . . . . Rewire . | . . . . Trap . | . . . . Miscellaneous . | . . . . Route ------- -11/Scrapyard -10/Materials (discovered 2 exits: *Mat / [*Min]) -9/Materials (discovered 2 exits: [*Mat] / [*Min]) -8/Materials History --------- Turn | Location | Event 51 | -11/Scrapyard | Discovered new exit (range 15) 69 | -11/Scrapyard | Entered Materials 303 | -10/Materials | Build established: Mutant 430 | -10/Materials | Discovered new exit (range 7) 874 | -10/Materials | Core integrity fell below 50% 965 | -10/Materials | Lost 5 parts (1p1n1u2w) 1086 | -10/Materials | Discovered new exit (range 11) 1181 | -10/Materials | Entered another Materials area 1181 | -9/Materials | Evolved 2 slots: Propulsion x1, Utility x1 2023 | -9/Materials | Discovered new exit (range 15) 2477 | -9/Materials | Repaired Flight Unit+ 3344 | -9/Materials | Discovered new exit (range 10) 3483 | -9/Materials | Core integrity fell below 50% 3522 | -9/Materials | Core integrity fell below 20% 3544 | -9/Materials | Lost 3 parts (1p2w) 3588 | -9/Materials | Entered another Materials area 3588 | -8/Materials | Evolved 2 slots: Propulsion x1, Weapon x1 4370 | -8/Materials | Core integrity fell below 50% 4396 | -8/Materials | Lost 6 parts (1p2n1u2w) 4555 | -8/Materials | Core integrity fell below 20% 4583 | -8/Materials | Destroyed by H-55 Commando with Assault Rifle Last Messages --------------- 04539_ R-06 Scavenger collects Imp. Heat Sink. 04552_ Lgt. Nuclear Core destroyed. 04557_ G-47 Trooper destroyed. 04560_ G-47 Trooper IFF system glitched. 04562_ Hvy. EM Shotgun destroyed. 04564_ Lgt. Treads destroyed. 04567_ Overheating: Energy bleed (-1). 04572_ R-06 Scavenger destroyed. 04573_ Slammed into G-47 Trooper. 04574_ G-47 Trooper heat spikes uncontrollably. 04574_ G-47 Trooper overheating. 04575_ Slammed into G-47 Trooper. 04575_ G-47 Trooper overheating. 04576_ Particle Gun destroyed. 04576_ Slammed into G-47 Trooper. 04580_ Penetrated by Slug. 04581_ Slammed into G-47 Trooper. 04582_ Critical hit (Burn: +37). 04583_ Penetrated by Slug. 04583_ Lgt. Treads destroyed. Map ----- +----------------------------------------------------+ | ?????????????????????????????????????????## ##?? | | ?????????????????????????????????????????## ##?? | | ?????????????????????????????????????????## ##?? | | ?????????????????????????????????????????## ##?? | | ?????????????????????????????????????????## ##?? | | ?????????????????????????????????????????## ##?? | | ?????????????????????????????????????????## ##?? | | ?????????????????????????????????????????## ##?? | | ?????????????????? ################### ##?? | | ###########+######+######################## ##?? | | ] % ##?? | | ##?? | | [[ ! % % ##?? | | [! ####=%=#######+######+######+########?? | | ?????????#% #?### # !## % #####?? | | ??????????????#%=%#???# # ## """##????? | | ??????????????#[!=#???# % # ## T"##????? | | ??????????????# #???# # ##! """##????? | | ??????????????# #???# % # ## ##????? | | ??????????????# #???# # ## ##????? | | ??????????????# #???#####+## ! ##########????? | | ??????????????# #???????# #################????? | | ?????????????## ##??????# ## %!%%% %#?????????? | | ?????????????# ######## ## !%%%%!%=#?????????? | | ?????????????# h %%% # """%"%%%#?????????? | | ?????????????# % u g@!! ;%%"""%%" #?????????? | | ?????????????# %%*%=# """"""" #?????????? | | ?????????????# % #######=g # """"""" #?????????? | | ????????????####+#####???#* # """"""" #?????????? | | ????????????# #???# # #?????????? | | ????????????#""" #???# ###########?????????? | | ????????????#""" #???# #???????????????????? | | ????????????#""" #???# #???????????????????? | | ????????????# #???# #???????????????????? | | ????????????#""" #???# #???????????????????? | | ????????????#""" #???# #???????????????????? | | ????????????#""" #???# #???????????????????? | | ????????????# #???# #???????????????????? | | ????????????##########???# #???????????????????? | | ?????????????????????????# #???????????????????? | | ?????????????????????????? ????????????????????? | | ?????????????????????????????????????????????????? | | ?????????????????????????????????????????????????? | | ?????????????????????????????????????????????????? | | ?????????????????????????????????????????????????? | | ?????????????????????????????????????????????????? | | ?????????????????????????????????????????????????? | | ?????????????????????????????????????????????????? | | ?????????????????????????????????????????????????? | | ?????????????????????????????????????????????????? | +----------------------------------------------------+ Best States ------------- Heat Dissipation 31 Energy Generation 14 Energy Capacity 275 Matter Stores 300 Matter Capacity 300 Sight Range 16 Terrain Scan Density 10 ECM Strength 1 Additional Mass Support 9 Utility Shielding 33 Evasion (%) 63 Targeting Accuracy 5 Recoil Reduction 2 Salvage Targeting 1 Item Schematics ----------------- None Robot Schematics ------------------ None Fabricated ------------ Nothing Repaired ---------- Flight Unit | 25% | -9/Materials Studied --------- Flight Unit | -9/Materials | Hacked Alien Tech Used ----------------- None Achievements -------------- None Challenges ------------ None Game ------ Seed DecoderElectronCape Manual? 0 Play Time 00:31:45 Cumulative 25.2 hours Start 2026.08.30 @ 18:40:44 End 2026.08.31 @ 15:54:32 Sessions 2 Manual Loads 0 Difficulty Rogue Special Mode None Game No. 56 Rogue 39 Adventurer 15 Explorer 2 Win Type - Total 0 Types 0/0/0/0/0/0/0/0/0/0 Lore% 23 Gallery% 22 Achievement% 20 Wizard Run 0 Options --------- Layout 1 ASCII 0 Keyboard 0 Movement Mouse Keybinds 0 Fullscreen 1 Font 24/Smallcaps Map View 50x35 Zoom Use 0% Tactical HUD 1 Map Filters NONE Filters NONE Steam 1 RUN: 86e9e35a-033b-4aa3-ab7a-ecc223a4e708